fUSD/lending_fUSD_20251210
["ID","MTS","AMOUNT","RATE_DAILY","PERIOD"]
[398072289,1765357855312,-500.0,0.00013972,2]
[398072290,1765357855326,-371.82640639,0.00013972,2]
[398072291,1765357855339,-629.12,0.00013972,2]
[398072292,1765357855356,-500.0,0.00013972,2]
[398072293,1765357855368,-668.83,0.00013972,2]
[398072294,1765357855381,-618.47,0.00013972,2]
[398072295,1765357855394,-500.0,0.00013972,2]
[398072296,1765357855407,-500.0,0.00013972,2]
[398072297,1765357855422,-734.74,0.00013972,2]
[398072298,1765357855434,-500.0,0.00013972,2]
[398072299,1765357855453,-500.0,0.00013972,2]
[398072300,1765357855466,-500.0,0.00013972,2]
[398072301,1765357855478,-500.0,0.00013972,2]
[398072302,1765357855491,-623.42,0.00013972,2]
[398072303,1765357855504,-500.0,0.00013972,2]
[398072304,1765357855517,-500.0,0.00013972,2]
[398072305,1765357855529,-500.0,0.00013972,2]
[398072306,1765357855542,-500.0,0.00013972,2]
[398072307,1765357855554,-500.0,0.00013972,2]
[398072308,1765357855566,-500.0,0.00013972,2]
[398072309,1765357855579,-612.04677415,0.00013972,2]
[398072310,1765357855592,-500.0,0.00013972,2]
[398072311,1765357855604,-500.0,0.00013972,2]
[398072312,1765357855616,-500.0,0.00013972,2]
[398072313,1765357855629,-500.0,0.00013972,2]
[398072314,1765357855642,-500.0,0.00013972,2]
[398072315,1765357855654,-500.0,0.00013972,2]
[398072316,1765357855666,-733.65,0.00013972,2]
[398072317,1765357855679,-500.0,0.00013972,2]
[398072318,1765357855691,-500.0,0.00013972,2]
[398072319,1765357855703,-500.0,0.00013972,2]
[398072320,1765357855715,-500.0,0.00013972,2]
[398072321,1765357855727,-690.44,0.00013972,2]
[398072322,1765357855740,-500.0,0.00013972,2]
[398072323,1765357855752,-500.0,0.00013972,2]
[398072324,1765357855765,-166.66,0.00013973,2]
[398072325,1765357855777,-150.0,0.00013979,2]
[398072326,1765357855789,-500.0,0.00013979,2]
[398072327,1765357855802,-200.0,0.0001398,2]
[398072328,1765357855815,-1000.0,0.00014,2]
[398072329,1765357855828,-1019.80474964,0.00014,2]
[398072330,1765357855840,-1097.0,0.00014,2]
[398072331,1765357855852,-500.0,0.00014025,2]
[398072332,1765357855864,-500.0,0.00014025,2]
[398072333,1765357855876,-500.0,0.00014025,2]
[398072334,1765357855888,-500.0,0.00014026,2]
[398072335,1765357855900,-500.0,0.00014026,2]
[398072336,1765357855913,-575.37564041,0.00014026,2]
[398072337,1765357855927,-500.0,0.00014026,2]
[398072338,1765357855939,-500.0,0.00014026,2]
[398072339,1765357855951,-500.0,0.00014026,2]
[398072340,1765357855963,-500.0,0.00014026,2]
[398072341,1765357855974,-500.0,0.00014026,2]
[398072342,1765357855986,-500.0,0.00014026,2]
[398072343,1765357855998,-500.0,0.00014026,2]
[398072344,1765357856010,-500.0,0.00014026,2]
[398072345,1765357856022,-801.66,0.00014026,2]
[398072346,1765357856034,-500.0,0.00014026,2]
[398072347,1765357856046,-548.29,0.00014026,2]
[398072348,1765357856058,-500.0,0.00014026,2]
[398072349,1765357856070,-500.0,0.00014026,2]
[398072350,1765357856082,-500.0,0.00014026,2]
[398072351,1765357856094,-500.0,0.00014026,2]
[398072352,1765357856106,-500.0,0.00014026,2]
[398072353,1765357856118,-500.0,0.00014026,2]
[398072354,1765357856130,-500.0,0.00014026,2]
[398072355,1765357856143,-500.0,0.00014026,2]
[398072356,1765357856155,-589.75,0.00014026,2]
[398072357,1765357856167,-500.0,0.00014026,2]
[398072358,1765357856179,-500.0,0.00014026,2]
[398072359,1765357856191,-500.0,0.00014026,2]
[398072360,1765357856204,-500.0,0.00014026,2]
[398072361,1765357856216,-500.0,0.00014026,2]
[398072362,1765357856228,-500.0,0.00014026,2]
[398072363,1765357856255,-500.0,0.00014026,2]
[398072364,1765357856271,-680.32,0.00014026,2]
[398072365,1765357856288,-500.0,0.00014026,2]
[398072366,1765357856302,-626.83,0.00014026,2]
[398072367,1765357856317,-500.0,0.00014026,2]
[398072368,1765357856331,-757.56,0.00014026,2]
[398072369,1765357856346,-500.0,0.00014026,2]
[398072370,1765357856361,-500.0,0.00014026,2]
[398072371,1765357856376,-500.0,0.00014026,2]
[398072372,1765357856390,-673.38,0.00014026,2]
[398072373,1765357856404,-500.0,0.00014026,2]
[398072374,1765357856417,-500.0,0.00014026,2]
[398072375,1765357856433,-622.74806143,0.00014026,2]
[398072376,1765357856447,-500.0,0.00014026,2]
[398072377,1765357856460,-500.0,0.00014026,2]
[398072378,1765357856473,-500.0,0.00014026,2]
[398072379,1765357856487,-800.49,0.00014026,2]
[398072380,1765357856502,-377.28262242,0.00014026,2]
[398072381,1765357856516,-500.0,0.00014026,2]
[398072382,1765357856529,-546.43,0.00014026,2]
[398072383,1765357856543,-500.0,0.00014026,2]
[398072384,1765357856556,-500.0,0.00014026,2]
[398072385,1765357856566,-500.0,0.00014026,2]
[398072386,1765357856575,-556.96,0.00014026,2]
[398072387,1765357856583,-167.67410352,0.00014026,2]
[398072388,1765357856593,-500.0,0.00014026,2]
[398072389,1765357856602,-500.0,0.00014026,2]
[398072390,1765357856611,-500.0,0.00014026,2]
[398072391,1765357856620,-500.0,0.00014026,2]
[398072392,1765357856629,-500.0,0.00014026,2]
[398072393,1765357856638,-500.0,0.00014026,2]
[398072394,1765357856647,-500.0,0.00014026,2]
[398072395,1765357856656,-500.0,0.00014026,2]
[398072396,1765357856665,-500.0,0.00014026,2]
[398072397,1765357856674,-500.0,0.00014026,2]
[398072398,1765357856683,-500.0,0.00014026,2]
[398072399,1765357856692,-500.0,0.00014026,2]
[398072400,1765357856701,-500.0,0.00014026,2]
[398072401,1765357856710,-500.0,0.00014026,2]
[398072402,1765357856719,-406.83544121,0.00014026,2]
[398072403,1765357856728,-500.0,0.00014026,2]
[398072404,1765357856737,-500.0,0.00014026,2]
[398072405,1765357856746,-500.0,0.00014026,2]
[398072406,1765357856756,-500.0,0.00014026,2]
[398072407,1765357856765,-500.0,0.00014026,2]
[398072408,1765357856774,-1852.56,0.00014026,2]
[398072409,1765357856783,-500.0,0.00014026,2]
[398072410,1765357856792,-1167.21,0.00014026,2]
[398072411,1765357856801,-500.0,0.00014026,2]
[398072412,1765357856810,-501.3,0.00014026,2]
[398072413,1765357856819,-500.0,0.00014026,2]
[398072414,1765357856829,-500.0,0.00014026,2]
[398072415,1765357856838,-500.0,0.00014026,2]
[398072416,1765357856848,-500.0,0.00014026,2]
[398072417,1765357856857,-500.0,0.00014026,2]
[398072418,1765357856866,-556.07718916,0.00014026,2]
[398072419,1765357857320,-664.07,0.00014026,2]
[398072420,1765357857336,-441.8410907,0.00014026,2]
[398072421,1765357857365,-500.0,0.00014026,2]
[398072422,1765357857382,-768.63,0.00014026,2]
[398072423,1765357857392,-500.0,0.00014026,2]
[398072424,1765357857401,-500.0,0.00014026,2]
[398072425,1765357857410,-530.27,0.00014026,2]
[398072426,1765357857422,-500.0,0.00014026,2]
[398072427,1765357857431,-500.0,0.00014026,2]
[398072428,1765357857440,-818.77,0.00014026,2]
[398072429,1765357857449,-500.0,0.00014026,2]
[398072430,1765357857458,-500.0,0.00014026,2]
[398072431,1765357857468,-500.0,0.00014026,2]
[398072432,1765357857477,-500.0,0.00014026,2]
[398072433,1765357857486,-500.0,0.00014026,2]
[398072434,1765357857495,-516.02,0.00014026,2]
[398072435,1765357857504,-500.0,0.00014026,2]
[398072436,1765357857513,-500.0,0.00014026,2]
[398072437,1765357857522,-163.15815695,0.00014026,2]
[398072438,1765357857531,-500.0,0.00014026,2]
[398072439,1765357857540,-538.18,0.00014026,2]
[398072440,1765357857549,-595.84,0.00014026,2]
[398072441,1765357857558,-500.0,0.00014026,2]
[398072442,1765357857568,-500.0,0.00014026,2]
[398072443,1765357857578,-308.278842,0.00014026,2]
[398072444,1765357857587,-308.278842,0.00014026,2]
[398072445,1765357857596,-308.278842,0.00014026,2]
[398072446,1765357857605,-308.278839,0.00014026,2]
[398072447,1765357857614,-500.0,0.00014026,2]
[398072448,1765357857623,-500.0,0.00014026,2]
[398072449,1765357857633,-500.0,0.00014026,2]
[398072450,1765357857642,-500.0,0.00014026,2]
[398072451,1765357857651,-500.0,0.00014026,2]
[398072452,1765357857660,-500.0,0.00014026,2]
[398072453,1765357857669,-500.0,0.00014026,2]
[398072454,1765357857678,-500.0,0.00014026,2]
[398072455,1765357857687,-500.0,0.00014026,2]
[398072456,1765357857695,-430.69598589,0.00014026,2]
[398072457,1765357857704,-500.0,0.00014026,2]
[398072458,1765357857713,-485.0,0.0001406,2]
[398072459,1765357857722,-500.0,0.00014061,2]
[398072460,1765357857731,-500.0,0.00014061,2]
[398072461,1765357857740,-1021.78,0.00014062,2]
[398072462,1765357857753,-1000.0,0.00014062,2]
[398072463,1765357857762,-725.93850798,0.00014062,2]
[398072464,1765357857772,-3485.08953,0.00014062,2]
[398072465,1765357857780,-326.25720919,0.00014101,2]
[398072466,1765357857790,-4585.63044618,0.00014106,2]
[398072467,1765357857799,-9808.19100306,0.00014106,2]
[398072468,1765357857809,-553.64373807,0.00014108,2]
[398072469,1765357857818,-191.60920322,0.00014108,2]
[398072470,1765357857827,-500.0,0.00014108,2]
[398072471,1765357857837,-500.0,0.00014108,2]
[398072472,1765357857846,-256.95456194,0.00014109,2]
[398072473,1765357857855,-150.0,0.00014109,2]
[398072474,1765357857865,-166.66,0.0001411,2]
[398072475,1765357857874,-291.30177695,0.00014116,2]
[398072476,1765357857883,-500.0,0.00014116,2]
[398072477,1765357857892,-200.0,0.0001412,2]
[398072478,1765357857901,-485.0,0.00014121,2]
[398072479,1765357857911,-462.5642847,0.00014143,2]
[398072480,1765357857920,-1000.0,0.00014153,2]
[398072481,1765357857929,-485.0,0.00014172,2]
[398072482,1765357857938,-19656.66653194,0.0001418,2]
[398072483,1765357857947,-166.65,0.00014197,2]
[398072484,1765357857956,-461.27937917,0.00014245,2]
[398072485,1765357857965,-500.0,0.00014245,2]
[398072486,1765357857974,-500.0,0.00014245,2]
[398072487,1765357857983,-150.0,0.00014246,2]
[398072488,1765357857992,-500.0,0.00014246,2]
[398072489,1765357858001,-500.0,0.00014246,2]
[398072490,1765357858010,-500.0,0.00014246,2]
[398072491,1765357858019,-500.0,0.00014246,2]
[398072492,1765357858028,-586.84628869,0.00014246,2]
[398072493,1765357858037,-500.0,0.00014246,2]
[398072494,1765357858046,-500.0,0.00014246,2]
[398072495,1765357858055,-500.0,0.00014246,2]
[398072496,1765357858064,-742.43,0.00014246,2]
[398072497,1765357858073,-1010.84,0.00014246,2]
[398072498,1765357858082,-500.0,0.00014246,2]
[398072499,1765357858091,-500.0,0.00014246,2]
[398072500,1765357858100,-500.0,0.00014246,2]
[398072501,1765357858109,-500.0,0.00014246,2]
[398072502,1765357858118,-176.19967412,0.00014246,2]
[398072503,1765357858127,-500.0,0.00014246,2]
[398072504,1765357858136,-849.82,0.00014246,2]
[398072505,1765357858145,-500.0,0.00014246,2]
[398072506,1765357858153,-641.36,0.00014246,2]
[398072507,1765357858162,-500.0,0.00014246,2]
[398072508,1765357858171,-804.78,0.00014246,2]
[398072509,1765357858180,-500.0,0.00014246,2]
[398072510,1765357858189,-500.0,0.00014246,2]
[398072511,1765357858198,-500.0,0.00014246,2]
[398072512,1765357858207,-500.0,0.00014246,2]
[398072513,1765357858216,-500.0,0.00014246,2]
[398072514,1765357858226,-500.0,0.00014246,2]
[398072515,1765357858235,-500.0,0.00014246,2]
[398072516,1765357858244,-500.0,0.00014246,2]
[398072517,1765357858253,-627.91,0.00014246,2]
[398072518,1765357858263,-500.0,0.00014246,2]
[398072519,1765357858272,-500.0,0.00014246,2]
[398072520,1765357858281,-500.0,0.00014246,2]
[398072521,1765357858291,-500.0,0.00014246,2]
[398072522,1765357858300,-500.0,0.00014246,2]
[398072523,1765357858309,-500.0,0.00014246,2]
[398072524,1765357858318,-500.0,0.00014246,2]
[398072525,1765357858327,-500.0,0.00014246,2]
[398072526,1765357858336,-580.49,0.00014246,2]
[398072527,1765357858345,-684.03,0.00014246,2]
[398072528,1765357858354,-669.46,0.00014246,2]
[398072529,1765357858364,-533.51,0.00014246,2]
[398072530,1765357858373,-500.0,0.00014246,2]
[398072531,1765357858382,-746.33,0.00014246,2]
[398072532,1765357858392,-500.0,0.00014246,2]
[398072533,1765357858401,-500.0,0.00014246,2]
[398072534,1765357858410,-500.0,0.00014246,2]
[398072535,1765357858421,-521.50559333,0.00014246,2]
[398072536,1765357858431,-500.0,0.00014246,2]
[398072537,1765357858440,-542.46,0.00014246,2]
[398072538,1765357858449,-500.0,0.00014246,2]
[398072539,1765357858458,-500.0,0.00014246,2]
[398072540,1765357858469,-500.0,0.00014246,2]
[398072541,1765357858478,-500.0,0.00014246,2]
[398072542,1765357858487,-500.0,0.00014246,2]
[398072543,1765357858499,-500.0,0.00014246,2]
[398072544,1765357858512,-500.0,0.00014246,2]
[398072545,1765357858521,-500.0,0.00014246,2]
[398072546,1765357858530,-500.0,0.00014246,2]
[398072547,1765357858539,-500.0,0.00014246,2]
[398072548,1765357858548,-500.0,0.00014246,2]
[398072549,1765357858557,-500.0,0.00014246,2]
[398072550,1765357858568,-500.0,0.00014246,2]
[398072551,1765357858577,-500.0,0.00014246,2]
[398072552,1765357858586,-500.0,0.00014246,2]
[398072553,1765357858598,-500.0,0.00014246,2]
[398072554,1765357858607,-500.0,0.00014246,2]
[398072555,1765357858617,-500.0,0.00014246,2]
[398072556,1765357858627,-500.0,0.00014246,2]
[398072557,1765357858637,-500.0,0.00014246,2]
[398072558,1765357858647,-718.55,0.00014246,2]
[398072559,1765357858658,-500.0,0.00014246,2]
[398072560,1765357858667,-500.0,0.00014246,2]
[398072561,1765357858678,-604.06,0.00014246,2]
[398072562,1765357858688,-500.0,0.00014246,2]
[398072563,1765357858697,-500.0,0.00014246,2]
[398072564,1765357858707,-501.76,0.00014246,2]
[398072565,1765357858717,-452.40614089,0.00014246,2]
[398072566,1765357858729,-500.0,0.00014246,2]
[398072567,1765357858740,-500.0,0.00014246,2]
[398072568,1765357858749,-500.0,0.00014246,2]
[398072569,1765357858758,-500.0,0.00014246,2]
[398072570,1765357858773,-697.8,0.00014246,2]
[398072571,1765357858783,-500.0,0.00014246,2]
[398072572,1765357858792,-573.86,0.00014246,2]
[398072573,1765357858801,-500.0,0.00014246,2]
[398072574,1765357858810,-500.0,0.00014246,2]
[398072575,1765357858819,-767.15,0.00014246,2]
[398072576,1765357858828,-683.07,0.00014246,2]
[398072577,1765357858837,-500.0,0.00014246,2]
[398072578,1765357858846,-500.0,0.00014246,2]
[398072579,1765357858855,-500.0,0.00014246,2]
[398072580,1765357858864,-500.0,0.00014246,2]
[398072581,1765357858874,-1239.48,0.00014246,2]
[398072582,1765357858883,-365.04518769,0.00014246,2]
[398072583,1765357858892,-772.48,0.00014246,2]
[398072584,1765357858901,-500.0,0.00014246,2]
[398072585,1765357858910,-500.0,0.00014246,2]
[398072586,1765357858920,-500.0,0.00014246,2]
[398072587,1765357858929,-500.0,0.00014246,2]
[398072588,1765357858938,-500.0,0.00014246,2]
[398072589,1765357858948,-500.0,0.00014246,2]
[398072590,1765357858957,-865.23,0.00014246,2]
[398072591,1765357858966,-500.0,0.00014246,2]
[398072592,1765357858975,-500.0,0.00014246,2]
[398072593,1765357858984,-500.0,0.00014246,2]
[398072594,1765357858993,-500.0,0.00014246,2]
[398072595,1765357859002,-724.59,0.00014246,2]
[398072596,1765357859011,-500.0,0.00014246,2]
[398072597,1765357859020,-509.68,0.00014246,2]
[398072598,1765357859029,-500.0,0.00014246,2]
[398072599,1765357859038,-702.19,0.00014246,2]
[398072600,1765357859046,-500.0,0.00014246,2]
[398072601,1765357859055,-546.23,0.00014246,2]
[398072602,1765357859064,-500.0,0.00014246,2]
[398072603,1765357859073,-605.66,0.00014246,2]
[398072604,1765357859082,-706.08,0.00014246,2]
[398072605,1765357859091,-500.0,0.00014246,2]
[398072606,1765357859100,-500.0,0.00014246,2]
[398072607,1765357859109,-500.0,0.00014246,2]
[398072608,1765357859118,-500.0,0.00014246,2]
[398072609,1765357859127,-500.0,0.00014246,2]
[398072610,1765357859136,-500.0,0.00014246,2]
[398072611,1765357859145,-500.0,0.00014246,2]
[398072612,1765357859154,-1174.03,0.00014246,2]
[398072613,1765357859166,-500.0,0.00014246,2]
[398072614,1765357859176,-557.43,0.00014246,2]
[398072615,1765357859185,-500.0,0.00014246,2]
[398072616,1765357859194,-500.0,0.00014246,2]
[398072617,1765357859203,-500.0,0.00014246,2]
[398072618,1765357859212,-823.7,0.00014246,2]
[398072619,1765357859221,-466.83011851,0.00014246,2]
[398072620,1765357859231,-500.0,0.00014246,2]
[398072621,1765357859240,-500.0,0.00014246,2]
[398072622,1765357859250,-500.0,0.00014246,2]
[398072623,1765357859259,-555.68,0.00014246,2]
[398072624,1765357859268,-500.0,0.00014246,2]
[398072625,1765357859278,-514.77,0.00014246,2]
[398072626,1765357859291,-500.0,0.00014246,2]
[398072627,1765357859300,-901.29,0.00014246,2]
[398072628,1765357859309,-500.0,0.00014246,2]
[398072629,1765357859319,-500.0,0.00014246,2]
[398072630,1765357859328,-615.28,0.00014246,2]
[398072631,1765357859337,-500.0,0.00014246,2]
[398072632,1765357859346,-500.0,0.00014246,2]
[398072633,1765357859356,-500.0,0.00014246,2]
[398072634,1765357859366,-500.0,0.00014246,2]
[398072635,1765357859375,-534.13,0.00014246,2]
[398072636,1765357859385,-992.07,0.00014246,2]
[398072637,1765357859394,-500.0,0.00014246,2]
[398072638,1765357859403,-573.54,0.00014246,2]
[398072639,1765357859412,-500.0,0.00014246,2]
[398072640,1765357859425,-500.0,0.00014246,2]
[398072641,1765357859434,-500.0,0.00014246,2]
[398072642,1765357859443,-500.0,0.00014246,2]
[398072643,1765357859453,-500.0,0.00014246,2]
[398072644,1765357859462,-500.0,0.00014246,2]
[398072645,1765357859472,-500.0,0.00014246,2]
[398072646,1765357859482,-792.07,0.00014246,2]
[398072647,1765357859491,-583.08,0.00014246,2]
[398072648,1765357859500,-500.0,0.00014246,2]
[398072649,1765357859510,-500.0,0.00014246,2]
[398072650,1765357859519,-500.0,0.00014246,2]
[398072651,1765357859528,-500.0,0.00014246,2]
[398072652,1765357859538,-554.64,0.00014246,2]
[398072653,1765357859547,-500.0,0.00014246,2]
[398072654,1765357859556,-500.0,0.00014246,2]
[398072655,1765357859565,-1261.23,0.00014246,2]
[398072656,1765357859574,-500.0,0.00014246,2]
[398072657,1765357859583,-508.91,0.00014246,2]
[398072658,1765357859592,-500.0,0.00014246,2]
[398072659,1765357859601,-1138.44,0.00014246,2]
[398072660,1765357859610,-500.0,0.00014246,2]
[398072661,1765357859619,-591.7,0.00014246,2]
[398072662,1765357859629,-627.85,0.00014246,2]
[398072663,1765357859638,-512.73,0.00014246,2]
[398072664,1765357859646,-605.85,0.00014246,2]
[398072665,1765357859655,-537.09,0.00014246,2]
[398072666,1765357859665,-277.93056788,0.00014246,2]
[398072667,1765357859674,-500.0,0.00014246,2]
[398072668,1765357859683,-500.0,0.00014246,2]
[398072669,1765357859692,-1000.05,0.00014246,2]
[398072670,1765357859701,-500.0,0.00014246,2]
[398072671,1765357859710,-1106.55,0.00014246,2]
[398072672,1765357859719,-297.26637541,0.00014246,2]
[398072673,1765357859729,-558.83,0.00014246,2]
[398072674,1765357859738,-500.0,0.00014246,2]
[398072675,1765357859747,-500.0,0.00014246,2]
[398072676,1765357859757,-500.0,0.00014246,2]
[398072677,1765357859766,-500.0,0.00014246,2]
[398072678,1765357859776,-500.0,0.00014246,2]
[398072679,1765357859785,-500.0,0.00014246,2]
[398072680,1765357859794,-500.0,0.00014246,2]
[398072681,1765357859803,-713.37,0.00014246,2]
[398072682,1765357859812,-500.0,0.00014246,2]
[398072683,1765357859821,-551.54,0.00014246,2]
[398072684,1765357859831,-500.0,0.00014246,2]
[398072685,1765357859840,-500.0,0.00014246,2]
[398072686,1765357859849,-500.0,0.00014246,2]
[398072687,1765357859858,-500.0,0.00014246,2]
[398072688,1765357859867,-500.0,0.00014246,2]
[398072689,1765357859876,-500.0,0.00014246,2]
[398072690,1765357859886,-500.0,0.00014246,2]
[398072691,1765357859895,-500.0,0.00014246,2]
[398072692,1765357859904,-500.0,0.00014246,2]
[398072693,1765357859913,-786.73,0.00014246,2]
[398072694,1765357859922,-500.0,0.00014246,2]
[398072695,1765357859931,-732.39,0.00014246,2]
[398072696,1765357859941,-500.0,0.00014246,2]
[398072697,1765357859950,-500.0,0.00014246,2]
[398072698,1765357859960,-500.0,0.00014246,2]
[398072699,1765357859969,-611.68,0.00014246,2]
[398072700,1765357859978,-500.0,0.00014246,2]
[398072701,1765357859987,-603.65,0.00014246,2]
[398072702,1765357859996,-500.0,0.00014246,2]
[398072703,1765357860005,-500.0,0.00014246,2]
[398072704,1765357860015,-500.0,0.00014246,2]
[398072705,1765357860024,-1170.79,0.00014246,2]
[398072706,1765357860033,-500.0,0.00014246,2]
[398072707,1765357860046,-500.0,0.00014246,2]
[398072708,1765357860055,-500.0,0.00014246,2]
[398072709,1765357860064,-565.78,0.00014246,2]
[398072710,1765357860074,-500.0,0.00014246,2]
[398072711,1765357860083,-549.2,0.00014246,2]
[398072712,1765357860092,-500.0,0.00014246,2]
[398072713,1765357860102,-500.0,0.00014246,2]
[398072714,1765357860112,-716.51,0.00014246,2]
[398072715,1765357860121,-500.0,0.00014246,2]
[398072716,1765357860131,-500.0,0.00014246,2]
[398072717,1765357860140,-500.0,0.00014246,2]
[398072718,1765357860149,-500.0,0.00014246,2]
[398072719,1765357860158,-500.0,0.00014246,2]
[398072720,1765357860167,-500.0,0.00014246,2]
[398072721,1765357860177,-500.0,0.00014246,2]
[398072722,1765357860186,-520.43,0.00014246,2]
[398072723,1765357860195,-500.0,0.00014246,2]
[398072724,1765357860204,-500.0,0.00014246,2]
[398072725,1765357860213,-500.0,0.00014246,2]
[398072726,1765357860223,-500.0,0.00014246,2]
[398072727,1765357860231,-562.69,0.00014246,2]
[398072728,1765357860240,-500.0,0.00014246,2]
[398072729,1765357860250,-500.0,0.00014246,2]
[398072730,1765357860259,-500.0,0.00014246,2]
[398072731,1765357860268,-500.0,0.00014246,2]
[398072732,1765357860277,-533.34,0.00014246,2]
[398072733,1765357860286,-500.0,0.00014246,2]
[398072734,1765357860296,-500.0,0.00014246,2]
[398072735,1765357860305,-500.0,0.00014246,2]
[398072736,1765357860314,-594.5,0.00014246,2]
[398072737,1765357860324,-500.0,0.00014246,2]
[398072738,1765357860333,-500.0,0.00014246,2]
[398072739,1765357860342,-500.0,0.00014246,2]
[398072740,1765357860352,-604.78,0.00014246,2]
[398072741,1765357860361,-500.0,0.00014246,2]
[398072742,1765357860370,-500.0,0.00014246,2]
[398072743,1765357860380,-1491.21,0.00014246,2]
[398072744,1765357860389,-629.61554638,0.00014246,2]
[398072745,1765357860398,-722.63,0.00014246,2]
[398072746,1765357860408,-500.0,0.00014246,2]
[398072747,1765357860417,-500.0,0.00014246,2]
[398072748,1765357860431,-500.0,0.00014246,2]
[398072749,1765357860440,-500.0,0.00014246,2]
[398072750,1765357860449,-500.0,0.00014246,2]
[398072751,1765357860458,-500.0,0.00014246,2]
[398072752,1765357860638,-500.0,0.00014246,2]
[398072753,1765357860661,-870.4,0.00014246,2]
[398072754,1765357860670,-500.0,0.00014246,2]
[398072755,1765357860679,-553.62,0.00014246,2]
[398072756,1765357860688,-500.0,0.00014246,2]
[398072757,1765357860697,-500.0,0.00014246,2]
[398072758,1765357860707,-500.0,0.00014246,2]
[398072759,1765357860716,-500.0,0.00014246,2]
[398072760,1765357860725,-500.0,0.00014246,2]
[398072761,1765357860736,-585.09,0.00014246,2]
[398072762,1765357860747,-500.0,0.00014246,2]
[398072763,1765357860756,-500.0,0.00014246,2]
[398072764,1765357860765,-3462.62,0.00014246,2]
[398072765,1765357860774,-500.0,0.00014246,2]
[398072766,1765357860783,-500.0,0.00014246,2]
[398072767,1765357860793,-500.0,0.00014246,2]
[398072768,1765357860801,-505.02,0.00014246,2]
[398072769,1765357860810,-500.0,0.00014246,2]
[398072770,1765357860819,-1142.85,0.00014246,2]
[398072771,1765357860829,-500.0,0.00014246,2]
[398072772,1765357860838,-500.0,0.00014246,2]
[398072773,1765357860847,-519.23,0.00014246,2]
[398072774,1765357860856,-602.53,0.00014246,2]
[398072775,1765357860865,-500.0,0.00014246,2]
[398072776,1765357860874,-620.14,0.00014246,2]
[398072777,1765357860883,-694.12,0.00014246,2]
[398072778,1765357860892,-500.0,0.00014246,2]
[398072779,1765357860901,-1170.78,0.00014246,2]
[398072780,1765357860910,-500.0,0.00014246,2]
[398072781,1765357860919,-500.0,0.00014246,2]
[398072782,1765357860928,-646.93,0.00014246,2]
[398072783,1765357860938,-500.0,0.00014246,2]
[398072784,1765357860947,-500.0,0.00014246,2]
[398072785,1765357860956,-3783.49,0.00014246,2]
[398072786,1765357860965,-571.08,0.00014246,2]
[398072787,1765357860975,-681.43,0.00014246,2]
[398072788,1765357860985,-500.0,0.00014246,2]